Cogmind - Beta 10 X2 *** ADVENTURER MODE // 2020.07.18 @ 22:42:46 // Experiment/BattleRoyale Player: Minty Result: Destroyed by Powerboy-11 with Matter Neutralizer Performance ------------- Evolutions (0) 0 Regions Visited (0) 0 Robots Destroyed (0) 0 Value Destroyed (0) 0 Prototype IDs (2) 40 Alien Tech Used (0) 0 Bonus (0) 0 TOTAL SCORE: 40 Bonus ------- None Cogmind --------- Core Integrity 0/250 Matter 300/300 Energy 312/325 System Corruption 0% Temperature Cool (151) Movement Treading (145) Location -5/Wartown Parts ------- > --- POWER (2) -------- Reinforced Ion Engine Light Fission Core > --- PROPULSION (4) --- Advanced Heavy Treads > --- UTILITY (6) ------ Coolant Injector Large Storage Unit Makeshift Sensor Array Melee Analysis Suite Advanced Thermal Shield > --- WEAPON (3) ------- Force Rifle Cooled Phase Gun Makeshift Spear > --- INVENTORY (10) --- (None) Peak State ------------ > --- POWER ------------ Reinforced Ion Engine Light Fission Core > --- PROPULSION ------- Advanced Heavy Treads Impulse Thruster > --- UTILITY ---------- Coolant Injector Large Storage Unit Compact Matter Pod Makeshift Sensor Array Melee Analysis Suite Advanced Thermal Shield > --- WEAPON ----------- Force Rifle Cooled Phase Gun Makeshift Spear > --- INVENTORY -------- (None) [Rating: 69] Favorites ----------- Power Reinforced Ion Engine Engine Reinforced Ion Engine Power Core Light Fission Core Propulsion Advanced Heavy Treads Treads Advanced Heavy Treads Flight Unit Impulse Thruster Utility Coolant Injector Device Coolant Injector Storage Large Storage Unit Processor Melee Analysis Suite Weapon Force Rifle Energy Gun Force Rifle Piercing Weapon Makeshift Spear Build | -5 ------- Run | Tow Slots Evolved . | . Power . | . Propulsion . | . Utility . | . Weapon . | . Parts Attached . | . Power . | . Engine . | . Core . | . Reactor . | . Propulsion . | . Treads . | . Leg . | . Wheel . | . Hover . | . Flight . | . Utility . | . Device . | . Storage . | . Processor . | . Hackware . | . Protection . | . Artifact . | . Weapon . | . Energy Gun . | . Energy Cannon . | . Ballistic Gun . | . Ballistic Cannon . | . Launcher . | . Special Weapon . | . Impact Weapon . | . Slashing Weapon . | . Piercing Weapon . | . Special Melee Weapon . | . Unidentified Prototypes . | . Parts Lost 1 | 1 Power . | . Propulsion . | . Utility 1 | 1 Weapon . | . Highest Loss Streak 1 | 1 Average Slot Usage (%) 80 | 80 Engine 6 | 6 Core 6 | 6 Treads 6 | 6 Device 20 | 20 Storage 13 | 13 Processor 6 | 6 Energy Gun 13 | 13 Piercing Weapon 6 | 6 Naked Turns . | . Heaviest Build 56 | 56 Greatest Support 70 | 70 Greatest Overweight (x) . | . Average Overweight (x) . | . Largest Inventory Capacity 10 | 10 Average Capacity 10 | 10 Most Carried . | . Average Carried . | . Final Capacity 10 | 10 Final Carried . | . Class Distribution -------------------- 100% | Mutant Dominant Class ---------------- Mutant | -5/Wartown Resources | -5 ----------- Run | Tow Matter Collected . | . Remotely . | . Salvage Created . | . Parts . | . Haulers Intercepted . | . Recyclers Shooed . | . Parts Field Recycled . | . Retrieved Matter . | . Parts Self-Destructed . | . Prevented . | . Kills | -5 ------- Run | Tow Combat Hostiles Destroyed . | . Classes Destroyed . | . Best Kill Streak . | . Combat Bots Only . | . Max Kills in Single Turn . | . Gunslinging . | . Exploded . | . Melee . | . Uniques/NPCs Destroyed . | . Combat | -5 -------- Run | Tow Damage Taken 475 | 475 Core 253 | 253 Absorbed by Shields . | . Redirected to Core 3659 | 3659 Core Remaining (%) . | . Volleys Fired 7 | 7 Largest 2 | 2 Hottest 106 | 106 Shots Fired 10 | 10 Gun 10 | 10 Cannon . | . Launcher . | . Special . | . Kinetic . | . Thermal 10 | 10 Explosive . | . Electromagnetic . | . Robot Hit Streak 3 | 3 Robot Miss Streak 1 | 1 Penetration Max . | . Secondary Targets . | . Shots Hit Robots 7 | 7 Core Hits 1 | 1 Critical Hits . | . Critical Kills . | . Critical Parts Destroyed . | . Melee Attacks 2 | 2 Impact . | . Slashing . | . Piercing 2 | 2 Sneak Attacks . | . Combat Hostiles . | . Follow-up Attacks . | . Damage Inflicted 160 | 160 Guns 99 | 99 Cannons . | . Explosions . | . Melee 61 | 61 Ramming . | . Kinetic . | . Thermal 99 | 99 Explosive . | . Electromagnetic . | . Impact . | . Slashing . | . Piercing 61 | 61 Highest Corruption . | . Average Corruption . | . Corruption Purged . | . Overload Shots . | . Overflow Damage . | . Projectiles . | . Explosions . | . Melee . | . Knockbacks . | . Impact . | . Kinetic . | . Secondary . | . Self-Inflicted Damage . | . Shots . | . Rammed . | . Targets Rammed . | . Kicked . | . Crushed . | . Highest Temperature 182 | 182 Average Temperature 116 | 116 Received Heat Transfer 135 | 135 Siege Activations . | . Robots Corrupted . | . Combat Hostiles . | . Parts Fried . | . Impact Corruptions . | . Robots Melted . | . Combat Hostiles . | . Parts Melted . | . Heat Transferred 45 | 45 Parts Sabotaged . | . Parts Stolen . | . Parts Stripped . | . Power Chain Reactions . | . Missiles Intercepted . | . Alert | -5 ------- Run | Tow Peak Influence . | . Average Influence . | . Maximum Alert Level . | . Low Security (%) . | . Level 1 . | . Level 2 . | . Level 3 . | . Level 4 . | . Level 5 . | . High Security . | . Max Security . | . Squads Dispatched . | . Investigation . | . Extermination . | . Reinforcement . | . Assault . | . Garrison . | . Intercept . | . Construction Impeded . | . Haulers Reinforced . | . Stealth | -5 --------- Run | Tow Distress Signals . | . Communications Jammed . | . Distress Signals . | . Times Spotted 1 | 1 Peak Tracking Total 1 | 1 Tactical Retreats . | . Traps | -5 ------- Run | Tow Traps Triggered . | . Indirectly . | . Trap Hack Attempts . | . Triggered . | . Disarmed . | . Reprogrammed . | . Reused . | . Traps Extracted . | . Installed . | . Triggered . | . Machines | -5 ---------- Run | Tow Machines Disabled . | . Max in Single Turn . | . Machines Sabotaged . | . Garrisons Compromised . | . Overloaded Fab Kills . | . Fab Network Shutdowns . | . Hacking | -5 --------- Run | Tow Machines Accessed . | . Terminals . | . Fabricators . | . Repair Stations . | . Recycling Units . | . Scanalyzers . | . Garrison Access . | . Total Hacks . | . Successful . | . Failed . | . Catastrophic . | . Database Lockouts . | . Manual . | . Terminals . | . Fabricators . | . Repair Stations . | . Recycling Units . | . Scanalyzers . | . Garrison Access . | . Terminal Hacks . | . Fabricator Hacks . | . Repair Station Hacks . | . Recycling Unit Hacks . | . Scanalyzer . | . Garrison Access Hacks . | . Unauthorized Hacks . | . Terminals . | . Fabricators . | . Repair Stations . | . Recycling Units . | . Scanalyzers . | . Garrison Access . | . Data Cores Recovered . | . Used . | . Hacking Detections . | . Full Trace Events . | . Feedback Events . | . Feedback Blocked . | . Robot Schematics Acquired . | . Robots Built . | . Matter . | . Time . | . Total Robot Build Rating . | . Part Schematics Acquired . | . Parts Built . | . Matter . | . Time . | . Total Part Build Rating . | . Parts Repaired . | . Time . | . Parts Recycled . | . Recycled Matter . | . Retrieved Matter . | . Retrieved Components . | . Parts Scanalyzed . | . Part Schematics Acquired . | . Parts Damaged . | . Bothacking | -5 ------------ Run | Tow Used RIF Installer . | . Robots Hacked . | . Non-combat . | . Combat . | . Robot Hacks Applied . | . Relay Couplers Released . | . Robots Rewired . | . Allies Hacked . | . Hacks Repelled . | . Allies | -5 -------- Run | Tow Total Allies . | . Largest Group . | . Highest-Rated Group . | . Highest-Rated Ally . | . Total Orders . | . Ally Attacks . | . Total Damage . | . Kills . | . Allies Corrupted . | . Allies Melted . | . Intel | -5 ------- Run | Tow Robot Analysis Total . | . Derelict Logs Recovered . | . Drone Launches . | . Drone Recoveries . | . Exploration | -5 ------------- Run | Tow Turns Passed 94 | 94 Spaces Moved 40 | 40 Core . | . Treads 40 | 40 Legs . | . Wheels . | . Hover . | . Flight . | . Fastest Speed 145 | 145 Average Speed 145 | 145 Slowest Speed 145 | 145 Overloaded Moves . | . Propulsion Burnouts . | . Robots Hopped . | . Cave-ins Triggered . | . Exploration Rate (%) 1 | 1 Regions Visited 1 Branch Regions 1 Pre-discovered Areas . | . Known Exits Taken . | . Unknown Exits Taken . | . Scrap Searched . | . Spaces Dug . | . Terrain Destroyed . | . Melee . | . Projectile . | . AOE . | . Actions | -5 --------- Run | Tow Total 66 | 66 Wait 15 | 15 Move 40 | 40 Hop . | . Pick Up . | . Fast Attach . | . Attach . | . Detach . | . Swap . | . Drop 2 | 2 Fire 7 | 7 Melee 2 | 2 Ram . | . Kick . | . Crush . | . Escape Stasis . | . Rewire . | . Trap . | . Miscellaneous . | . Route ------- -5/Wartown History --------- Turn | Location | Event 85 | -5/Wartown | Core integrity fell below 50% 88 | -5/Wartown | Core integrity fell below 20% 95 | -5/Wartown | Destroyed by Powerboy-11 with Matter Neutralizer Last Messages --------------- Systems online... Loading variables... CORE=STABLE INTEGRATION=OK LOCATION=UNKNOWN GOAL=EXPLORE [SPECIAL MODE ACTIVATED: Experiment/BattleRoyale] Dropped Imp. Q-thruster. 00002_ Dropped Impulse Thruster. 00084_ Nuclear Reactor explodes. 00090_ Com. Matter Pod destroyed. Map ----- +----------------------------------------------------+ | ?????????????????????????????????????????????????? | | ?????????????????????????????????????????????????? | | ?????????????????????????????????????????????????? | | ?????????????????????????????????????????????????? | | ?????????????????????? ??????????????????????????? | | ??????????????????? ??????????????????????????? | | ????????????????? ##+######?????????????????? | | ?????????????????" #?????????????????? | | ????????????????"" * +?????????????????? | | ?????????????? """ #?????????????????? | | ??????????????? #?????????????????? | | ???????????????? ##############????? | | ????????????????"" # #????? | | ????????????????"" # #????? | | ?????????????" """ # #????? | | ????????????"" """ # #????? | | ??????????? ! / # ! """ """??????? | | ??????????? # """ """ ?????? | | ??????????? ] # """ """ #????? | | ?????????? + #????? | | ?????????? # """ """ #????? | | ????????? # """ """ ?????? | | ?????????? # =""" """ #????? | | ????????????######## @ # = #????? | | ?????????? # ##############????? | | ??????????????""" @ #??????????????? | | ??????????????""" """ #??????????????? | | ??????????????""" """ #??????????????? | | ????????????? """ ???????????????? | | ??????????? # ???????????????? | | ????????????###;#??# ###??????????????? | | ???????????????????##############????????????????? | | | | | | | | | | | | | | | | | | | | | | | | | | | | | | | | | | | | | +----------------------------------------------------+ Best States ------------- Heat Dissipation 25 Coolant Potential 65 Energy Generation 25 Energy Capacity 325 Matter Stores 300 Matter Capacity 450 Sight Range 16 Robot Scan Range 22 Terrain Scan Density 10 Resistance: KI 20 Resistance: TH 50 Resistance: EX 20 Resistance: EM 20 Resistance: I 20 Resistance: S 20 Resistance: P 20 Evasion (%) 40 Melee Accuracy 5 Recoil Reduction 2 Offensive Hacking 10 Item Schematics ----------------- None Robot Schematics ------------------ None Fabricated ------------ Nothing Alien Tech Used ----------------- None Achievements -------------- None Challenges ------------ None Game ------ Seed ChipLayeredWings Manual? 0 Play Time 00:02:21 Cumulative 212.0 hours Start 2020.07.18 @ 22:41:30 End 2020.07.18 @ 22:42:46 Sessions 1 Manual Loads 0 Difficulty Adventurer Special Mode Experiment/BattleRoyale Game No. 136 Rogue 0 Adventurer 45 Explorer 91 Win Type - Total 6 Types 5/0/1/0/0/0/0 Lore% 53 Gallery% 79 Achievement% 58 Wizard Run 0 Options --------- ASCII 0 Keyboard 0 Movement Mouse Keybinds 0 Fullscreen 1 Font 18/TerminusBold Map View 76x50 Tactical HUD 1 Map Filters NONE Filters SATURATION(100) Steam 1 RUN: adb50d39-80b1-4487-bf8f-4b2c1a6dcc90